bitfinex/quotes_ETHUSD_20250319
["timestamp","ask_amount","ask_price","bid_price","bid_amount"]
[1742360873366,0.01,1938.9,1938.8,5.74212]
[1742360873564,0.01,1938.9,1938.8,5.90508558]
[1742360878780,0.01,1938.9,1938.8,5.32078558]
[1742360882874,0.01,1938.9,1938.8,0.16296558]
[1742360886279,0.8256,1938.9,1938.8,0.16296558]
[1742360886469,1.42389,1938.9,1938.6,5.15834]
[1742360886672,1.48836553,1938.9,1938.7,0.16280401]
[1742360886980,1.42389,1938.9,1938.6,5.15834]
[1742360887172,1.42389,1938.9,1938.8,0.16257731]
[1742360887377,1.42389,1938.9,1938.6,5.15834]
[1742360887595,0.8256,1938.9,1938.8,0.16257731]
[1742360887900,0.8256,1938.9,1938.6,5.15834]
[1742360888098,0.8256,1938.9,1938.7,0.16280401]
[1742360888275,0.8256,1938.9,1938.6,5.15834]
[1742360888483,0.8256,1938.9,1938.7,0.16280401]
[1742360888789,0.8256,1938.9,1938.6,5.15834]
[1742360888790,0.06447626,1938.8,1938.4,5.74317]
[1742360888989,5.95881,1938.7,1938.4,5.15887]
[1742360889205,0.8007,1938.7,1938.4,5.15887]
[1742360889575,0.8007,1938.7,1938.4,10.31758]
[1742360890301,1.18096671,1938.7,1938.4,10.31758]
[1742360890491,1.18096671,1938.7,1938.4,5.15871]
[1742360891721,1.18096671,1938.7,1938.4,10.31739]
[1742360891869,1.18096671,1938.7,1938.5,5.15861]
[1742360893306,1.18096671,1938.7,1938.4,5.15882]
[1742360896202,1.18096671,1938.7,1938.3,5.15914]
[1742360896203,6.33916671,1938.7,1938.3,5.15914]
[1742360896404,0.06448229,1938.6,1938.3,5.15914]
[1742360896614,5.95944,1938.5,1938.1,5.15967]
[1742360896905,5.95961,1938.4,1938.0,5.15994]
[1742360897385,0.06449594,1938.3,1938.0,5.15994]
[1742360897576,5.95961,1938.4,1938.1,0.16441706]
[1742360897772,7.071434,1938.4,1938.1,0.16441706]
[1742360897977,7.13592992,1938.4,1938.1,0.16441706]
[1742360899496,6.752524,1938.4,1938.1,5.32400706]
[1742360901996,6.752524,1938.4,1938.2,5.15939]
[1742360902201,0.8249,1938.6,1938.2,5.32361889]
[1742360902408,5.6649,1938.6,1938.4,5.15888]
[1742360902735,4.84,1938.6,1938.4,5.15888]
[1742360902918,7.20131561,1938.7,1938.5,0.16368851]
[1742360904136,2.36131561,1938.7,1938.5,0.16368851]
[1742360904416,6.10965285,1938.7,1938.5,0.16368851]
[1742360905097,6.04516671,1938.7,1938.5,0.16368851]
[1742360907418,6.10964873,1938.7,1938.5,0.16368851]
[1742360908417,11.26778873,1938.7,1938.5,0.16368851]
[1742360908623,16.36162671,1938.7,1938.3,5.15896]
[1742360908923,12.83946938,1938.7,1938.3,5.15896]
[1742360909232,7.68132938,1938.7,1938.4,0.16392305]
[1742360909522,7.68132938,1938.7,1938.4,5.15868]
[1742360909727,5.22026671,1938.7,1938.5,5.32217627]
[1742360910099,0.7845,1938.9,1938.5,5.32212627]
[1742360910311,0.01,1938.9,1938.7,5.15809]
[1742360910625,0.01,1938.9,1938.8,0.1629695]
[1742360912308,0.39953027,1938.9,1938.8,0.1629695]
[1742360915011,6.33159027,1938.9,1938.8,0.1629695]
[1742360915223,7.4869259,1938.9,1938.5,5.15861]
[1742360915424,0.0644776,1938.8,1938.5,10.31706]
[1742360915728,0.0644776,1938.8,1938.5,5.15845]
[1742360916234,6.39606704,1938.9,1938.5,5.15845]
[1742360916733,1.17403027,1938.9,1938.6,5.15826]
[1742360919036,7.48694829,1938.9,1938.5,5.15855]
[1742360919332,0.06448048,1938.8,1938.5,5.15855]
[1742360922108,7.48694829,1938.9,1938.5,5.15855]
[1742360922926,7.48694829,1938.9,1938.5,5.15842]
[1742360923131,7.48694829,1938.9,1938.6,5.15833]
[1742360923306,7.48694829,1938.9,1938.5,5.15856]
[1742360923514,7.48694829,1938.9,1938.6,5.15833]
[1742360923735,1.17403027,1938.9,1938.6,5.15833]
[1742360924843,6.39609866,1938.9,1938.6,5.15833]
[1742360925217,0.8206,1938.8,1938.4,5.15887]
[1742360925422,0.8206,1938.6,1938.3,5.15913]
[1742360926725,0.8850867,1938.6,1938.3,5.15913]
[1742360926934,6.0434567,1938.6,1938.2,5.1594]
[1742360927335,7.64751137,1938.6,1938.2,5.1594]
[1742360927668,7.58302467,1938.6,1938.3,0.16391293]
[1742360927845,0.06448903,1938.5,1938.3,0.16391293]
[1742360930551,5.22314903,1938.5,1938.3,0.16391293]
[1742360930715,5.22314903,1938.5,1938.1,5.15948]
[1742360930919,5.22314903,1938.5,1938.2,0.16413975]
[1742360931346,5.15933,1938.3,1937.9,5.16019]
[1742360931557,5.15933,1938.3,1938.0,0.16459346]
[1742360932833,5.22382732,1938.3,1938.0,0.16459346]
[1742360933547,9.99833,1938.3,1938.0,0.16459346]
[1742360933755,9.99827,1938.3,1938.0,0.16459346]
[1742360934749,10.38732926,1938.3,1938.0,0.16459346]
[1742360935622,5.22805926,1938.3,1938.0,5.32452346]
[1742360935818,5.22805926,1938.3,1938.0,6.37281781]
[1742360936018,0.8206,1938.4,1938.1,5.15957]
[1742360936223,5.6096,1938.6,1938.3,5.15911]
[1742360936537,0.7706,1938.6,1938.4,0.16384537]
[1742360937153,6.31185544,1938.6,1938.4,0.16384537]
[1742360937356,6.37634098,1938.6,1938.4,0.16384537]
[1742360937725,11.53491098,1938.6,1938.4,0.16384537]
[1742360937942,7.94934654,1938.6,1938.2,5.1594]
[1742360938137,5.15862,1938.5,1938.3,0.16407217]
[1742360939955,1.15348544,1938.6,1938.3,5.32322217]
[1742360940266,1.21797095,1938.6,1938.3,5.32322217]
[1742360941663,1.21797095,1938.6,1938.3,0.16407217]
[1742360941864,5.15876,1938.5,1938.3,0.16407217]
[1742360942067,5.92949,1938.4,1938.3,0.16407217]
[1742360942278,0.7706,1938.4,1938.0,10.31967]
[1742360942572,0.7706,1938.4,1938.1,5.15969]
[1742360942737,0.7706,1938.4,1938.1,5.32432844]
[1742360943157,5.9295,1938.4,1938.1,0.16463844]
[1742360943841,5.99399346,1938.4,1938.1,0.16463844]
[1742360944046,5.15919,1938.3,1938.1,0.16463844]
[1742360944260,5.15919,1938.3,1937.9,5.16009]
[1742360944745,5.15919,1938.3,1938.0,0.16482257]
[1742360945440,5.9295,1938.4,1938.0,5.32475257]
[1742360946038,6.31188544,1938.6,1938.1,0.5843]
[1742360946238,6.31188544,1938.6,1938.2,5.15939]
[1742360946450,6.31188544,1938.6,1938.2,10.48304771]
[1742360946651,1.15348544,1938.6,1938.3,5.15913]
[1742360946850,5.22188544,1938.6,1938.3,5.15903]
[1742360947065,5.22188544,1938.6,1938.4,5.9071341]
[1742360947269,0.38288544,1938.6,1938.4,5.9071341]
[1742360947482,4.839,1938.7,1938.4,5.9070141]
[1742360947771,5.6096,1938.8,1938.5,5.15851]
[1742360947983,5.6096,1938.8,1938.5,5.32223732]
[1742360949686,0.7706,1938.8,1938.6,5.15834]
[1742360949855,4.849,1938.9,1938.6,5.15834]
[1742360950056,10.00657,1938.9,1938.7,0.16327385]
[1742360950387,11.41048643,1938.9,1938.8,0.16304715]
[1742360950545,11.41048643,1938.9,1938.5,10.31696]
[1742360950884,4.849,1938.9,1938.6,5.32175057]
[1742360951247,5.24485995,1938.9,1938.6,5.32175057]
[1742360953180,10.46700558,1938.9,1938.6,0.16350057]
[1742360953353,10.40252995,1938.9,1938.6,0.16350057]
[1742360954372,5.24485995,1938.9,1938.6,5.32184057]
[1742360955478,5.22245561,1938.8,1938.6,0.16350057]
[1742360955780,5.95249,1938.7,1938.3,5.15914]
[1742360956168,6.01697469,1938.7,1938.3,5.15914]
[1742360957175,5.95249,1938.7,1938.3,5.15914]
[1742360957375,0.7944,1938.7,1938.5,5.1586]
[1742360957708,5.15787,1938.8,1938.5,5.1586]
[1742360957875,5.15787,1938.8,1938.6,0.16341904]
[1742360958084,6.9154132,1938.8,1938.6,0.16341904]
[1742360958781,6.9154132,1938.8,1938.7,0.16319231]
[1742360958979,6.9154132,1938.8,1938.4,5.74317]
[1742360959179,6.9154132,1938.8,1938.7,0.16319231]
[1742360959391,6.9154132,1938.8,1938.4,5.74317]
[1742360959678,6.9154132,1938.8,1938.7,0.16319231]
[1742360959879,6.9154132,1938.8,1938.4,5.74317]
[1742360960077,6.9154132,1938.8,1938.7,0.16319231]
[1742360960560,6.9154132,1938.8,1938.4,5.74317]
[1742360960763,6.9154132,1938.8,1938.5,0.16364579]
[1742360961448,12.0734532,1938.8,1938.5,0.16364579]
[1742360961785,5.95276,1938.6,1938.5,0.16364579]
[1742360962077,5.95276,1938.6,1938.2,5.15941]
[1742360962253,6.01724645,1938.6,1938.5,0.16367297]
[1742360962450,6.01724645,1938.6,1938.2,5.15941]
[1742360962650,6.01724645,1938.6,1938.5,0.16367297]
[1742360962872,6.01724645,1938.6,1938.2,5.15927]
[1742360963089,6.01724645,1938.6,1938.5,0.16367297]
[1742360963372,7.19104918,1938.6,1938.5,0.16367297]
[1742360963576,7.19104918,1938.6,1938.2,10.31849]
[1742360963779,7.19104918,1938.6,1938.3,0.16412653]
[1742360964072,7.25553767,1938.6,1938.3,0.16412653]
[1742360964278,7.19104918,1938.6,1938.3,0.16412653]
[1742360964590,2.03268918,1938.6,1938.3,0.16412653]
[1742360964880,0.7944,1938.6,1938.3,5.32314653]
[1742360965782,0.8124,1938.8,1938.4,0.5843]
[1742360965951,0.8124,1938.8,1938.5,10.31691]
[1742360966154,0.8124,1938.8,1938.6,0.16344622]
[1742360967287,10.00658,1938.9,1938.6,0.16344622]
[1742360967585,11.70527104,1938.9,1938.6,0.16344622]
[1742360968876,11.70527104,1938.9,1938.6,5.32178622]
[1742360970686,6.54769104,1938.9,1938.6,5.32178622]
[1742360971495,11.70528104,1938.9,1938.6,0.16344622]
[1742360972185,6.54769104,1938.9,1938.6,5.32167622]
[1742360972889,6.54769104,1938.9,1938.6,0.16344622]
[1742360973196,0.6547691,1938.8,1938.6,0.16344622]
[1742360973381,10.0067,1938.9,1938.6,0.16344622]
[1742360973581,10.39741268,1938.9,1938.6,0.16344622]
[1742360973785,10.39741268,1938.9,1938.6,5.32176622]
[1742360974091,5.23971268,1938.9,1938.6,5.32176622]
[1742360977092,5.23871268,1938.9,1938.6,5.32176622]
[1742360978302,6.35955495,1938.9,1938.6,5.32176622]
[1742360980966,6.42403336,1938.9,1938.6,5.32176622]
[1742360982172,6.35955495,1938.9,1938.6,5.32176622]
[1742360982409,6.35955495,1938.9,1938.6,10.47993622]
[1742360982710,6.35955495,1938.9,1938.6,5.32161622]
[1742360982886,6.42403139,1938.9,1938.6,5.32161622]
[1742360984193,6.35955495,1938.9,1938.6,5.32161622]
[1742360984908,1.52155495,1938.9,1938.6,5.32161622]
[1742360985097,0.40071268,1938.9,1938.6,10.47975622]
[1742360985279,0.40071268,1938.9,1938.7,5.15801]
[1742360985480,0.40071268,1938.9,1938.7,5.32120231]
[1742360987913,0.40071268,1938.9,1938.7,0.16319231]
[1742360988412,0.40071268,1938.9,1938.8,0.16296172]
[1742360988609,1.52155395,1938.9,1938.6,10.31646]
[1742360989005,1.52155395,1938.9,1938.8,0.16296172]
[1742360989201,1.52155395,1938.9,1938.7,0.16318842]
[1742360989515,1.52155395,1938.9,1938.8,0.16296172]
[1742360989878,1.52155395,1938.9,1938.6,10.31646]
[1742360990083,1.52155395,1938.9,1938.8,0.16296172]
[1742360990313,1.52155395,1938.9,1938.6,10.31646]
[1742360990508,0.40071268,1938.9,1938.8,0.16296172]
[1742360990691,0.40071268,1938.9,1938.7,0.15743963]
[1742360991014,0.40071268,1938.9,1938.6,10.31646]
[1742360991186,0.40071268,1938.9,1938.8,0.15721293]
[1742360991691,0.46518884,1938.9,1938.8,0.15721293]
[1742360992011,0.46518884,1938.9,1938.6,5.15816]
[1742360992227,0.46518884,1938.9,1938.8,0.15721293]
[1742360992519,1.52800156,1938.9,1938.6,5.15816]
[1742360992814,1.59247771,1938.9,1938.7,0.15743963]
[1742360993183,1.52800156,1938.9,1938.6,5.15816]
[1742360993382,1.59247771,1938.9,1938.8,0.15721293]
[1742360993608,5.94212,1938.8,1938.7,0.15743963]
[1742360993938,7.21134177,1938.8,1938.3,5.74343]
[1742360994135,0.06448181,1938.7,1938.3,5.74343]
[1742360994427,0.06448181,1938.7,1938.4,5.15879]
[1742360994628,7.2758236,1938.8,1938.4,5.15879]
[1742360994786,7.2758236,1938.8,1938.4,10.3175]
[1742360995401,0.72758236,1938.7,1938.3,0.5843]
[1742360995603,0.8325,1938.5,1938.2,5.15917]
[1742360995789,0.8325,1938.5,1938.3,5.15903]
[1742360996909,4.837,1938.6,1938.3,5.15903]
[1742360997110,4.837,1938.6,1938.4,5.15888]
[1742360998906,4.837,1938.6,1938.5,5.15862]
[1742360999489,4.837,1938.6,1938.5,5.15862]
[1742361000799,4.837,1938.6,1938.4,5.15886]
[1742361001889,4.837,1938.6,1938.5,5.15862]
[1742361002621,4.837,1938.6,1938.5,5.31657136]
[1742361002817,4.838,1938.8,1938.6,5.15834]
[1742361003402,4.838,1938.8,1938.7,0.15749788]
[1742361004032,4.838,1938.8,1938.6,5.15834]
[1742361004328,4.838,1938.8,1938.7,0.15749788]
[1742361004704,4.838,1938.8,1938.6,5.15834]
[1742361004904,4.838,1938.8,1938.7,0.15749788]
[1742361005295,4.838,1938.8,1938.6,5.15834]
[1742361005495,4.838,1938.8,1938.7,0.15749788]
[1742361005731,4.838,1938.8,1938.6,5.15834]
[1742361005929,4.838,1938.8,1938.7,5.31558788]
[1742361008320,4.23321268,1938.9,1938.7,5.31558788]
[1742361008494,1.23321268,1938.9,1938.7,5.31558788]
[1742361011231,0.40071268,1938.9,1938.7,5.31558788]
[1742361011424,5.23771268,1938.9,1938.7,5.31558788]
[1742361013500,0.40071268,1938.9,1938.7,6.36277167]
[1742361013796,0.40071268,1938.9,1938.8,5.15782]
[1742361014210,0.01,1938.9,1938.8,5.31491639]
[1742361014817,0.01,1938.9,1938.8,5.89921639]
[1742361015125,0.01,1938.9,1938.8,6.70724636]
[1742361015835,0.01,1938.9,1938.8,9.70724636]
[1742361023775,0.01,1938.9,1938.8,14.54324636]
[1742361026847,0.01,1938.9,1938.8,15.09324636]
[1742361030157,0.01,1938.9,1938.8,14.54324636]
[1742361030521,0.01,1938.9,1938.8,14.54224636]
[1742361032623,0.01,1938.9,1938.8,14.602268]
[1742361038039,0.01,1938.9,1938.8,15.08395751]
[1742361042342,0.01,1938.9,1938.8,32.91795751]
[1742361043636,0.01,1938.9,1938.8,27.49865751]
[1742361043849,0.01,1938.9,1938.8,32.33265751]
[1742361046170,0.01,1938.9,1938.8,27.49865751]
[1742361046465,0.7775,1938.9,1938.8,23.69062754]
[1742361047358,0.7775,1938.9,1938.8,23.20893803]
[1742361051369,0.7775,1938.9,1938.8,5.37493803]
[1742361056781,0.7775,1938.9,1938.8,0.21711803]
[1742361058489,0.7775,1938.9,1938.8,5.37493803]
[1742361059788,0.7775,1938.9,1938.8,0.21711803]
[1742361061058,5.82551249,1938.9,1938.8,0.21711803]
[1742361061388,1.40958,1938.9,1938.6,5.15834]
[1742361061696,0.8061,1938.8,1938.7,0.21726944]
[1742361061891,0.8061,1938.8,1938.7,5.37535944]
[1742361062054,0.8061,1938.8,1938.7,5.15809]
[1742361062259,0.8061,1938.8,1938.7,0.21729662]
[1742361062691,0.8061,1938.8,1938.6,5.15825]
[1742361062994,0.8061,1938.8,1938.7,5.37538662]
[1742361065588,0.8061,1938.8,1938.7,0.21729662]
[1742361065887,0.8061,1938.8,1938.6,5.15825]
[1742361066094,0.8061,1938.8,1938.7,0.21728885]
[1742361066394,0.8061,1938.8,1938.6,5.15825]
[1742361066590,0.8061,1938.8,1938.7,0.21728885]
[1742361066895,0.8061,1938.8,1938.6,10.31641]
[1742361067083,0.8061,1938.8,1938.7,5.37537885]
[1742361068791,0.8061,1938.8,1938.7,0.21728885]
[1742361068995,0.8061,1938.8,1938.5,5.15861]
[1742361069196,0.8061,1938.8,1938.6,0.21753034]
[1742361069394,1.403477,1938.8,1938.6,0.21753034]
[1742361069594,0.8325,1938.7,1938.6,0.21753034]
[1742361070669,0.8325,1938.7,1938.6,5.37589034]
[1742361072495,0.7733,1938.9,1938.7,5.1579]
[1742361072897,0.7733,1938.9,1938.8,0.21707068]
[1742361073771,0.7733,1938.9,1938.8,5.37489068]
[1742361075808,0.7733,1938.9,1938.8,0.21707068]
[1742361075978,0.60306,1938.9,1938.8,0.21707068]
[1742361076184,0.7733,1938.9,1938.8,0.21707068]
[1742361076512,0.7733,1938.9,1938.6,5.15835]
[1742361076670,0.7733,1938.9,1938.8,0.21709784]
[1742361076872,0.7733,1938.9,1938.7,0.21732766]
[1742361077170,5.93086,1938.9,1938.8,0.21709784]
[1742361077368,5.760646,1938.9,1938.6,5.15835]
[1742361077568,0.7633,1938.8,1938.7,0.21732766]
[1742361077770,0.7633,1938.8,1938.6,5.15835]
[1742361078005,0.7633,1938.8,1938.7,0.21732766]
[1742361078183,0.7633,1938.8,1938.6,5.15835]
[1742361078374,0.7633,1938.8,1938.7,0.21732766]
[1742361078572,0.7633,1938.8,1938.6,5.15835]
[1742361078872,0.7633,1938.8,1938.7,0.21732766]
[1742361079072,1.4156946,1938.8,1938.7,0.21732766]
[1742361079293,1.4156946,1938.8,1938.5,5.15856]
[1742361079497,1.4156946,1938.8,1938.7,0.21732766]
[1742361079975,1.4156946,1938.8,1938.6,5.15835]
[1742361080172,1.4156946,1938.8,1938.7,0.21732766]
[1742361080372,1.4156946,1938.8,1938.6,5.15835]
[1742361080574,1.4156946,1938.8,1938.7,0.21732766]
[1742361080902,1.4156946,1938.8,1938.6,5.15835]
[1742361081073,1.4156946,1938.8,1938.7,0.21732766]
[1742361081805,1.4156946,1938.8,1938.6,5.15835]
[1742361082008,1.4156946,1938.8,1938.7,0.21732766]
[1742361082213,1.4156946,1938.8,1938.6,5.15835]
[1742361082399,1.4156946,1938.8,1938.7,0.21732766]
[1742361082599,1.4156946,1938.8,1938.6,5.15835]
[1742361082810,0.7633,1938.8,1938.7,0.21732766]
[1742361082990,0.7633,1938.8,1938.6,5.15835]
[1742361083191,0.7633,1938.8,1938.7,0.21732766]
[1742361083392,0.7633,1938.8,1938.7,5.15809]
[1742361083709,0.7633,1938.8,1938.7,0.21737037]
[1742361084077,0.7633,1938.8,1938.6,5.15828]
[1742361084274,0.7633,1938.8,1938.7,0.21737037]
[1742361084708,0.7633,1938.8,1938.6,5.15828]
[1742361084907,0.7633,1938.8,1938.7,0.21737037]
[1742361085337,0.7633,1938.8,1938.5,5.15861]
[1742361085505,0.7633,1938.8,1938.7,0.21737037]
[1742361085708,6.52066172,1938.8,1938.6,0.21759245]
[1742361085910,1.36284172,1938.8,1938.7,0.21736261]
[1742361086109,1.42731898,1938.8,1938.7,0.21736261]
[1742361086281,1.42731898,1938.8,1938.5,5.15861]
[1742361086484,1.42731898,1938.8,1938.7,0.21736261]
[1742361086685,1.42731898,1938.8,1938.6,0.21759245]
[1742361086884,1.42731898,1938.8,1938.7,0.21736261]
[1742361087294,1.42731898,1938.8,1938.5,5.15861]
[1742361087494,1.42731898,1938.8,1938.7,0.21736261]
[1742361087695,1.42731898,1938.8,1938.6,0.21759245]
[1742361087891,6.58513898,1938.8,1938.7,0.21736261]
[1742361088085,5.82183898,1938.8,1938.7,0.21736261]
[1742361088286,5.9213,1938.7,1938.3,5.15913]
[1742361088482,5.1581,1938.7,1938.3,5.15896]
[1742361088817,0.7632,1938.6,1938.3,5.159]
[1742361089021,0.7632,1938.6,1938.4,5.15889]
[1742361089217,0.7632,1938.6,1938.3,5.159]
[1742361090038,1.41426416,1938.6,1938.3,5.159]
[1742361090343,1.47874805,1938.6,1938.3,5.159]
[1742361090537,1.41426416,1938.6,1938.3,5.159]
[1742361090737,1.15780211,1938.6,1938.4,5.15885]
[1742361090890,4.835,1938.7,1938.5,5.15862]
[1742361091805,1.0191688,1938.8,1938.5,10.31708]
[1742361092631,1.0191688,1938.8,1938.6,0.21759245]
[1742361092924,2.12134368,1938.8,1938.6,0.21759245]
[1742361093427,5.6082,1938.9,1938.6,5.37575245]
[1742361093727,5.6082,1938.9,1938.7,5.15809]
[1742361093924,5.87364432,1938.9,1938.7,5.15809]
[1742361094127,6.25354678,1938.9,1938.8,0.2171755]
[1742361094316,5.98810246,1938.9,1938.8,0.2171755]
[1742361095290,7.36253781,1938.9,1938.8,0.2171755]
[1742361095496,7.36253781,1938.9,1938.7,5.15796]
[1742361095822,7.36253781,1938.9,1938.8,0.2171755]
[1742361103312,7.36253781,1938.9,1938.6,5.15816]
[1742361103512,6.24799756,1938.9,1938.8,0.21718714]
[1742361104024,6.24799756,1938.9,1938.6,5.15816]
[1742361104208,6.24799756,1938.9,1938.7,0.21741696]
[1742361104408,6.24799756,1938.9,1938.6,5.15816]
[1742361104636,11.47013134,1938.9,1938.7,0.21741696]
[1742361104840,1.14701313,1938.8,1938.5,5.15862]
[1742361105145,11.40565756,1938.9,1938.8,0.21715608]
[1742361105309,11.40565756,1938.9,1938.5,5.15862]
[1742361105512,11.40565756,1938.9,1938.8,0.21715608]
[1742361105744,6.24799756,1938.9,1938.6,5.15824]
[1742361105917,5.98810246,1938.9,1938.8,0.21715608]
[1742361106117,7.10264471,1938.9,1938.7,0.2173859]
[1742361106313,7.10264471,1938.9,1938.8,0.21715996]
[1742361106746,0.38990246,1938.9,1938.7,5.15805]
[1742361106945,0.38990246,1938.9,1938.8,0.21715996]
[1742361108518,0.01,1938.9,1938.8,5.37497996]
[1742361108846,0.01,1938.9,1938.8,5.95927996]
[1742361118661,0.01,1938.9,1938.8,5.37497996]
[1742361119556,0.01,1938.9,1938.8,0.21715996]
[1742361120753,6.02122725,1938.9,1938.8,0.21715996]
[1742361120939,6.55888272,1938.9,1938.8,0.21715996]
[1742361121127,6.55888272,1938.9,1938.5,10.31697]
[1742361121330,5.95676,1938.9,1938.8,0.21705903]
[1742361121529,5.95676,1938.9,1938.6,5.15834]
[1742361121743,5.95676,1938.9,1938.8,0.21705903]
[1742361121941,0.7992,1938.9,1938.7,0.21728885]
[1742361122141,0.7992,1938.9,1938.8,0.21705903]
[1742361122332,1.910608,1938.9,1938.8,0.21705903]
[1742361122550,1.910608,1938.9,1938.6,5.15834]
[1742361122742,1.910608,1938.9,1938.8,0.21705903]
[1742361122944,1.910608,1938.9,1938.7,0.21728885]
[1742361123149,1.910608,1938.9,1938.8,0.21705903]
[1742361123453,1.910608,1938.9,1938.6,5.15817]
[1742361123648,0.7992,1938.9,1938.8,0.21705903]
[1742361123849,0.01,1938.9,1938.7,5.37527885]
[1742361124058,0.01,1938.9,1938.8,0.21705903]
[1742361125369,0.7992,1938.9,1938.8,0.21705903]
[1742361125528,5.95676,1938.9,1938.8,0.21705903]
[1742361125735,7.068184,1938.9,1938.5,10.9011]
[1742361126053,5.95676,1938.9,1938.5,10.9011]
[1742361126369,0.7992,1938.9,1938.6,5.3758387]
[1742361126537,0.7992,1938.9,1938.6,10.5340287]
[1742361127384,0.7992,1938.9,1938.7,5.15809]
[1742361127689,0.7992,1938.9,1938.8,0.21710561]
[1742361129193,0.01,1938.9,1938.8,0.21710561]
[1742361131758,0.01,1938.9,1938.6,5.15834]
[1742361132100,5.95173,1938.8,1938.7,0.21733543]
[1742361132453,5.95173,1938.8,1938.5,5.15861]
[1742361132653,5.95173,1938.8,1938.6,0.21756527]
[1742361132950,0.7939,1938.8,1938.6,0.21756527]
[1742361133155,0.01,1938.9,1938.6,5.37587527]
[1742361134288,5.16761,1938.9,1938.6,0.21756527]
[1742361134614,1.12188,1938.9,1938.6,0.21756527]
[1742361134896,5.15809,1938.7,1938.6,0.21756527]
[1742361135104,5.22257046,1938.7,1938.6,0.21756527]
[1742361135263,5.1584,1938.6,1938.2,5.15916]
[1742361135783,5.1584,1938.6,1938.2,10.31841]
[1742361135989,5.1584,1938.6,1938.2,5.15916]
[1742361136300,5.95262,1938.5,1938.1,10.57691]
[1742361137279,5.95262,1938.5,1938.1,15.73643]
[1742361137698,5.95262,1938.5,1938.2,0.21113192]
[1742361138570,6.34625847,1938.5,1938.2,0.21113192]
[1742361139399,6.34625847,1938.5,1938.2,5.37055192]
[1742361140473,6.34625847,1938.5,1938.2,0.21113192]
[1742361141306,1.18753847,1938.5,1938.2,5.37049192]
[1742361141723,0.7939,1938.5,1938.3,5.15912]
[1742361142018,5.2176695,1938.8,1938.5,5.15862]
[1742361142219,5.2176695,1938.8,1938.6,0.21048022]
[1742361142933,0.3836695,1938.8,1938.6,0.21048022]
[1742361143216,5.96151,1938.9,1938.6,0.21048022]
[1742361143389,7.556792,1938.9,1938.6,0.21048022]
[1742361146344,5.96151,1938.9,1938.6,0.21048022]
[1742361146848,6.35393584,1938.9,1938.6,0.21048022]
[1742361147347,0.01,1938.9,1938.6,5.36868022]
[1742361147646,0.01,1938.9,1938.7,5.74219]
[1742361147950,0.01,1938.9,1938.8,5.36784055]
[1742361149049,0.01,1938.9,1938.8,0.21002055]
[1742361149458,0.01,1938.9,1938.8,5.96306161]
[1742361150756,0.01,1938.9,1938.8,6.54736161]
[1742361151633,0.01,1938.9,1938.8,9.54736161]
[1742361157366,0.01,1938.9,1938.8,8.96306161]
[1742361157553,0.01,1938.9,1938.8,5.96306161]
[1742361158363,0.01,1938.9,1938.8,5.36784055]
[1742361158863,0.01,1938.9,1938.8,0.21002055]
[1742361159359,5.16756,1938.9,1938.8,0.21002055]
[1742361159667,5.16756,1938.9,1938.8,0.20959352]
[1742361159870,5.16756,1938.9,1938.5,22.99659]
[1742361160033,5.16756,1938.9,1938.6,0.20301354]
[1742361160034,6.281186,1938.9,1938.6,0.20301354]
[1742361161162,5.96922,1938.8,1938.6,0.20301354]
[1742361161349,5.96922,1938.8,1938.3,18.15005]
[1742361161549,5.96922,1938.8,1938.7,0.20281087]
[1742361161782,5.96922,1938.8,1938.3,18.15005]
[1742361161985,12.73169293,1938.8,1938.7,0.20281087]
[1742361162161,7.57368293,1938.8,1938.3,8.15899]
[1742361162344,7.57368293,1938.8,1938.7,0.20281087]
[1742361162549,7.57368293,1938.8,1938.4,5.15886]
[1742361163082,7.57368293,1938.8,1938.5,0.20332493]
[1742361164896,12.40568293,1938.8,1938.5,0.20332493]
[1742361166974,0.01,1938.9,1938.6,0.5843]
[1742361167180,0.01,1938.9,1938.7,5.15788]
[1742361167480,0.01,1938.9,1938.8,5.15782]
[1742361167670,0.01,1938.9,1938.8,5.36067665]
[1742361188960,0.7726,1938.9,1938.8,5.36067665]
[1742361189541,0.7726,1938.9,1938.8,0.20285665]
[1742361190769,0.7726,1938.9,1938.8,5.36067665]
[1742361190965,0.01,1938.9,1938.8,5.36067665]
[1742361192864,0.01,1938.9,1938.8,6.41253132]
[1742361193243,0.01,1938.9,1938.8,6.99683132]
[1742361199875,0.01,1938.9,1938.8,6.41253132]
[1742361203350,0.01,1938.9,1938.8,6.99683132]
[1742361207624,0.53720126,1939.3,1939.1,5.15684]
[1742361208111,0.53720126,1939.3,1939.2,0.20166976]
[1742361208529,0.53720126,1939.3,1939.2,5.35842976]
[1742361215326,0.53720126,1939.3,1939.2,0.20166976]
[1742361215534,0.53720126,1939.3,1939.2,5.35842976]
[1742361216631,0.53720126,1939.3,1939.2,0.20166976]
[1742361221476,1.39672318,1939.3,1939.1,0.20184512]
[1742361222271,0.7606,1939.3,1939.1,5.35882512]
[1742361223146,0.7606,1939.3,1939.1,0.20184512]
[1742361223574,5.9171,1939.3,1939.1,0.20184512]
[1742361223964,0.7606,1939.3,1939.1,0.20184512]
[1742361233803,0.7606,1939.3,1939.1,5.35883512]
[1742361234302,0.7606,1939.3,1939.1,0.20184512]
[1742361234489,1.39027611,1939.3,1939.1,0.20184512]
[1742361241846,1.39027611,1939.3,1939.1,5.35885512]
[1742361242647,0.7606,1939.3,1939.1,5.35885512]
[1742361242817,0.37992109,1939.4,1939.2,5.15676]
[1742361243005,5.6136,1939.5,1939.2,5.35827811]
[1742361243205,5.67805814,1939.5,1939.2,5.35827811]
[1742361243619,6.06251442,1939.5,1939.2,5.35827811]
[1742361243821,6.06251442,1939.5,1939.3,5.15649]
[1742361244036,6.06251442,1939.5,1939.3,5.35791841]
[1742361244402,6.06251442,1939.5,1939.3,0.20142841]
[1742361244832,12.36593092,1939.5,1939.1,5.15702]
[1742361245044,5.93985,1939.4,1939.1,5.15702]
[1742361245649,5.93985,1939.4,1939.0,5.15722]
[1742361245946,0.84806205,1939.3,1939.0,5.15722]
[1742361246505,0.84806205,1939.3,1938.6,5.5949]
[1742361246506,5.15703,1939.1,1938.8,5.15781]
[1742361246705,0.84806994,1939.0,1938.7,5.15807]
[1742361248828,5.15807,1938.7,1938.4,5.15873]